[Event "45th FIDE Womens Olympiad 2024"]
[Site "Budapest"]
[Date "2024.09.14"]
[Round "4.38"]
[White "Avramidou, Anastasia"]
[Black "Javakhishvili, Lela"]
[Result "1/2-1/2"]
[ECO "E11"]
[WhiteElo "2290"]
[BlackElo "2446"]
[Annotator "ChessBase"]
[PlyCount "79"]
[EventDate "2024.09.05"]
[EventType "team-tourn"]
[EventCountry "HUN"]
[SourceTitle "playchess.com"]
[Source "ChessBase"]
[SourceQuality "1"]
[WhiteTeam "Greece"]
[BlackTeam "Georgia"]
[WhiteTeamCountry "GRE"]
[BlackTeamCountry "GEO"]
[TimeControl "40/5400+30:1800+30"]

1. d4 Nf6 2. c4 e6 3. Nf3 d5 4. g3 Bb4+ 5. Bd2 a5 6. Bg2 O-O 7. O-O dxc4 8. Qc2 b5 9. a4 Bxd2 10. Nfxd2 c6 11. axb5 Nd5 12. Qxc4 cxb5 13. Qxb5 Ba6 14. Qxa5 Nc6 15. Qxd8 Rfxd8 16. Nb3 Bxe2 17. Rxa8 Rxa8 18. Rc1 Nce7 19. Nc3 Bg4 20. Nxd5 Nxd5 21. Nc5 h5 22. Be4 Be2 23. Nd3 Rb8 24. Bxd5 Bxd3 25. Bf3 Bg6 26. Rc5 h4 27. gxh4 Rxb2 28. h5 Bf5 29. Kg2 Rd2 30. d5 exd5 31. Rxd5 Rxd5 32. Bxd5 Bg4 33. Bf3 Be6 34. Kg3 Kh7 35. Kh4 Kh6 36. Be2 f6 37. Bf3 Bf7 38. Be2 Be6 39. Bf3 Bf7 40. Be2 1/2-1/2

[Event "45th FIDE Womens Olympiad 2024"]
[Site "Budapest"]
[Date "2024.09.14"]
[Round "4.39"]
[White "Batsiashvili, Nino"]
[Black "Pavlidou, Ekaterini"]
[Result "1-0"]
[ECO "A46"]
[WhiteElo "2461"]
[BlackElo "2141"]
[Annotator "ChessBase"]
[PlyCount "159"]
[EventDate "2024.09.05"]
[EventType "team-tourn"]
[EventCountry "HUN"]
[SourceTitle "playchess.com"]
[Source "ChessBase"]
[SourceQuality "1"]
[WhiteTeam "Georgia"]
[BlackTeam "Greece"]
[WhiteTeamCountry "GEO"]
[BlackTeamCountry "GRE"]
[TimeControl "40/5400+30:1800+30"]

1. d4 Nf6 2. Nf3 e6 3. Bf4 c5 4. e3 Nh5 5. Bg5 Qb6 6. Nbd2 h6 7. Bh4 cxd4 8. Nxd4 g5 9. Nc4 Qc5 10. Qxh5 gxh4 11. Qxc5 Bxc5 12. Nb5 Na6 13. Ncd6+ Ke7 14. O-O-O Bb6 15. Be2 Nc5 16. a3 a6 17. Nc4 Bd8 18. Nbd6 f6 19. Bf3 Rb8 20. b4 Na4 21. Rd4 b5 22. Nb2 Nb6 23. Rhd1 Bc7 24. Nxc8+ Rbxc8 25. Rxh4 Be5 26. Nd3 d5 27. Nxe5 fxe5 28. e4 d4 29. Be2 Rhf8 30. f4 exf4 31. Rxd4 e5 32. Rd3 Rc6 33. Rh5 Nc4 34. Rc3 Rg8 35. Bxc4 Rxc4 36. Rxc4 bxc4 37. Rxe5+ Kd6 38. Rf5 Rxg2 39. h4 Rf2 40. Kb2 Rf3 41. h5 Ke6 42. a4 Ke7 43. b5 axb5 44. axb5 Kd6 45. b6 Kc6 46. Rf6+ Kb7 47. Rxh6 Rh3 48. Rf6 Rxh5 49. Ka3 Rb5 50. Rxf4 Kxb6 51. Rf6+ Kb7 52. Rf5 Rb1 53. Rc5 Kb6 54. Rxc4 Kb5 55. Rd4 Kc5 56. c3 Re1 57. Kb3 Re2 58. Rc4+ Kb5 59. Rb4+ Kc5 60. Rd4 Kb5 61. c4+ Kc6 62. Kc3 Re3+ 63. Kd2 Rh3 64. Rd3 Rh2+ 65. Kc3 Kc5 66. Rd5+ Kc6 67. Kd4 Rd2+ 68. Ke5 Rc2 69. Rd6+ Kc7 70. Rd4 Kc6 71. Ke6 Kc5 72. Rd8 Re2 73. e5 Kxc4 74. Kf6 Rf2+ 75. Ke7 Kc5 76. e6 Kc6 77. Ke8 Kc7 78. e7 Rf1 79. Rd4 Ra1 80. Rf4 1-0

[Event "45th FIDE Womens Olympiad 2024"]
[Site "Budapest"]
[Date "2024.09.14"]
[Round "4.40"]
[White "Markantonaki, Haritomeni"]
[Black "Melia, Salome"]
[Result "0-1"]
[ECO "B31"]
[WhiteElo "2179"]
[BlackElo "2293"]
[Annotator "ChessBase"]
[PlyCount "78"]
[EventDate "2024.09.05"]
[EventType "team-tourn"]
[EventCountry "HUN"]
[SourceTitle "playchess.com"]
[Source "ChessBase"]
[SourceQuality "1"]
[WhiteTeam "Greece"]
[BlackTeam "Georgia"]
[WhiteTeamCountry "GRE"]
[BlackTeamCountry "GEO"]
[TimeControl "40/5400+30:1800+30"]

1. e4 c5 2. Nf3 Nc6 3. Bb5 g6 4. O-O Bg7 5. c3 Nf6 6. Re1 O-O 7. h3 e5 8. d3 d6 9. Nbd2 Qc7 10. a3 a6 11. Ba4 b5 12. Bc2 h6 13. b4 Be6 14. Bb2 Nh5 15. Nf1 Nf4 16. Ne3 Rfd8 17. d4 exd4 18. cxd4 Qa7 19. Qd2 Nxd4 20. Nxd4 cxd4 21. Nf1 Be5 22. Rad1 d3 23. Bb1 Ne2+ 24. Rxe2 dxe2 25. Qxe2 Qe7 26. Ne3 Qf6 27. Bc1 Rac8 28. g3 Rc3 29. Kg2 Rdc8 30. Bd2 Rxa3 31. f4 Bd4 32. f5 Bc4 33. Nxc4 bxc4 34. Bxh6 Be5 35. Bf4 Bxf4 36. gxf4 Qh4 37. Qg4 Qxg4+ 38. hxg4 c3 39. Rc1 c2 0-1

[Event "45th FIDE Womens Olympiad 2024"]
[Site "Budapest"]
[Date "2024.09.14"]
[Round "4.41"]
[White "Bulmaga, Irina"]
[Black "Kashlinskaya, Alina"]
[Result "1/2-1/2"]
[ECO "C55"]
[WhiteElo "2406"]
[BlackElo "2490"]
[Annotator "ChessBase"]
[PlyCount "132"]
[EventDate "2024.09.05"]
[EventType "team-tourn"]
[EventCountry "HUN"]
[SourceTitle "playchess.com"]
[Source "ChessBase"]
[SourceQuality "1"]
[WhiteTeam "Romania"]
[BlackTeam "Poland"]
[WhiteTeamCountry "ROU"]
[BlackTeamCountry "POL"]
[TimeControl "40/5400+30:1800+30"]

1. e4 e5 2. Nf3 Nc6 3. Bc4 Nf6 4. d3 Be7 5. Nc3 O-O 6. a3 d6 7. Be3 Nd7 8. Ba2 Nb6 9. Ne2 Kh8 10. h4 f5 11. Ng5 Bxg5 12. hxg5 Qe8 13. exf5 Bxf5 14. Ng3 Bg6 15. Qg4 Nd4 16. O-O-O c5 17. Rh2 d5 18. Rdh1 Kg8 19. Ne4 Qc8 20. Qxc8 Raxc8 21. Nc3 c4 22. Kd2 Nxc2 23. Bxb6 axb6 24. Kxc2 Rxf2+ 25. Kc1 cxd3 26. Bxd5+ Bf7 27. Bxf7+ Kxf7 28. g3 Rf3 29. Kd2 Rxg3 30. Rh3 Rg2+ 31. Kxd3 Rxb2 32. Rb1 Rxc3+ 33. Kxc3 Rxb1 34. Rxh7 Kg6 35. Rh2 Kxg5 36. Rg2+ Kf6 37. Rf2+ Ke6 38. Rg2 Rc1+ 39. Kd3 Rc7 40. Rg6+ Kd5 41. Rxb6 e4+ 42. Ke3 Rc3+ 43. Ke2 Rxa3 44. Rxb7 g5 45. Rb5+ Kd4 46. Rxg5 Ra2+ 47. Ke1 Kd3 48. Re5 Ke3 49. Kf1 Ra1+ 50. Kg2 Re1 51. Ra5 Rd1 52. Re5 Rd8 53. Kf1 Rf8+ 54. Ke1 Ra8 55. Kf1 Ra1+ 56. Kg2 Kd3 57. Kf2 Ra2+ 58. Kf1 Ra7 59. Kf2 Rf7+ 60. Ke1 Ke3 61. Ra5 Rd7 62. Ra8 Rd3 63. Rh8 Rc3 64. Rh3+ Kd4 65. Rxc3 Kxc3 66. Ke2 Kd4 1/2-1/2

[Event "45th FIDE Womens Olympiad 2024"]
[Site "Budapest"]
[Date "2024.09.14"]
[Round "4.42"]
[White "Socko, Monika"]
[Black "Sandu, Mihaela"]
[Result "1-0"]
[ECO "E21"]
[WhiteElo "2422"]
[BlackElo "2248"]
[Annotator "ChessBase"]
[PlyCount "87"]
[EventDate "2024.09.05"]
[EventType "team-tourn"]
[EventCountry "HUN"]
[SourceTitle "playchess.com"]
[Source "ChessBase"]
[SourceQuality "1"]
[WhiteTeam "Poland"]
[BlackTeam "Romania"]
[WhiteTeamCountry "POL"]
[BlackTeamCountry "ROU"]
[TimeControl "40/5400+30:1800+30"]

1. d4 Nf6 2. c4 e6 3. Nc3 Bb4 4. Bd2 b6 5. a3 Bxc3 6. Bxc3 O-O 7. Nf3 Ne4 8. Qc2 Bb7 9. e3 Nxc3 10. Qxc3 d6 11. h4 Nd7 12. O-O-O a5 13. Bd3 Bxf3 14. gxf3 Qf6 15. Qc2 Qh6 16. f4 c5 17. Be4 Rac8 18. d5 e5 19. Bf5 Rcd8 20. Bxd7 Rxd7 21. fxe5 dxe5 22. Qf5 Qd6 23. Rhg1 f6 24. h5 a4 25. Rg4 Kh8 26. Qc2 Ra7 27. f4 exf4 28. Rxf4 Re8 29. h6 gxh6 30. Qf5 Rf7 31. Qh5 Ref8 32. Qxh6 Rg7 33. Re4 Rg6 34. Qh5 Rfg8 35. Re6 Qg3 36. Rh1 R6g7 37. Qf5 Qg2 38. Rd1 Qe2 39. Qxf6 Qxc4+ 40. Kb1 Qb3 41. Rh1 Qd3+ 42. Ka1 Qg6 43. Qe5 Qd3 44. Rg1 1-0

[Event "45th FIDE Womens Olympiad 2024"]
[Site "Budapest"]
[Date "2024.09.14"]
[Round "4.43"]
[White "Lehaci, Miruna-Daria"]
[Black "Kiolbasa, Oliwia"]
[Result "1/2-1/2"]
[ECO "B67"]
[WhiteElo "2180"]
[BlackElo "2348"]
[Annotator "ChessBase"]
[PlyCount "65"]
[EventDate "2024.09.05"]
[EventType "team-tourn"]
[EventCountry "HUN"]
[SourceTitle "playchess.com"]
[Source "ChessBase"]
[SourceQuality "1"]
[WhiteTeam "Romania"]
[BlackTeam "Poland"]
[WhiteTeamCountry "ROU"]
[BlackTeamCountry "POL"]
[TimeControl "40/5400+30:1800+30"]

1. e4 c5 2. Nf3 d6 3. d4 cxd4 4. Nxd4 Nf6 5. Nc3 Nc6 6. Bg5 e6 7. Qd2 a6 8. O-O-O Bd7 9. Nxc6 Bxc6 10. f3 Be7 11. Be3 h5 12. Kb1 b5 13. Ne2 Rc8 14. Nd4 Bb7 15. Rc1 Nd7 16. c4 bxc4 17. Bxc4 d5 18. exd5 Nb6 19. Nc6 Nxc4 20. Rxc4 Qxd5 21. Nxe7 Qxd2 22. Rxc8+ Kxe7 23. Rc7+ Qd7 24. Rxd7+ Kxd7 25. Rd1+ Bd5 26. h4 Rc8 27. b3 Ke7 28. Kb2 f6 29. Rd4 Kd6 30. Rb4 e5 31. Rb6+ Rc6 32. Rxc6+ Kxc6 33. Kc3 1/2-1/2

[Event "45th FIDE Womens Olympiad 2024"]
[Site "Budapest"]
[Date "2024.09.14"]
[Round "4.44"]
[White "Sliwicka, Alicja"]
[Black "Ciolacu, Alessia-Mihaela"]
[Result "1-0"]
[ECO "C54"]
[WhiteElo "2373"]
[BlackElo "2160"]
[Annotator "ChessBase"]
[PlyCount "97"]
[EventDate "2024.09.05"]
[EventType "team-tourn"]
[EventCountry "HUN"]
[SourceTitle "playchess.com"]
[Source "ChessBase"]
[SourceQuality "1"]
[WhiteTeam "Poland"]
[BlackTeam "Romania"]
[WhiteTeamCountry "POL"]
[BlackTeamCountry "ROU"]
[TimeControl "40/5400+30:1800+30"]

1. e4 e5 2. Nf3 Nc6 3. Bc4 Bc5 4. d3 Nf6 5. Bg5 d6 6. c3 h6 7. Bh4 a5 8. a4 Ba7 9. Nbd2 O-O 10. O-O Qe7 11. Re1 Be6 12. Bb5 Nb8 13. d4 Bg4 14. h3 Bh5 15. g4 Bg6 16. Nf1 c6 17. Bd3 Nbd7 18. Ng3 Qe6 19. Nf5 Nb6 20. Bg3 Bb8 21. Bc2 Re8 22. Bb3 Qd7 23. dxe5 dxe5 24. Qe2 Bc7 25. Rad1 Qc8 26. N3h4 Bh7 27. Rd2 Qb8 28. Red1 c5 29. Ba2 Ra6 30. f3 Bxf5 31. Nxf5 Nh7 32. Bf2 Ng5 33. Kh2 Nxa4 34. h4 Ne6 35. Bc4 Nf4 36. Bxf7+ Kxf7 37. Qc4+ Ne6 38. Rd7+ Kf8 39. Qxa4 b5 40. Qa2 c4 41. b3 Rc6 42. bxc4 Rxc4 43. Qd2 Rd8 44. Nxg7 Nd4 45. Ne6+ Ke8 46. Rxd8+ Qxd8 47. cxd4 exd4+ 48. Nxc7+ Qxc7+ 49. Kg2 1-0

[Event "45th FIDE Womens Olympiad 2024"]
[Site "Budapest"]
[Date "2024.09.14"]
[Round "4.45"]
[White "Unuk, Laura"]
[Black "Mammadzada, Gunay"]
[Result "0-1"]
[ECO "D02"]
[WhiteElo "2316"]
[BlackElo "2433"]
[Annotator "ChessBase"]
[PlyCount "98"]
[EventDate "2024.09.05"]
[EventType "team-tourn"]
[EventCountry "HUN"]
[SourceTitle "playchess.com"]
[Source "ChessBase"]
[SourceQuality "1"]
[WhiteTeam "Slovenia"]
[BlackTeam "Azerbaijan"]
[WhiteTeamCountry "SLO"]
[BlackTeamCountry "AZE"]
[TimeControl "40/5400+30:1800+30"]

1. d4 Nf6 2. Nf3 d5 3. Bf4 e6 4. e3 c5 5. Nbd2 Qb6 6. a4 Nc6 7. dxc5 Bxc5 8. Nb3 Be7 9. Ne5 O-O 10. a5 Qd8 11. Bd3 Bd6 12. Nxc6 bxc6 13. O-O Rb8 14. Bg3 e5 15. c4 Bg4 16. f3 Be6 17. c5 Bc7 18. Bc2 Qc8 19. Bh4 Nd7 20. f4 f5 21. Bg3 g6 22. Ra3 Rb5 23. Bd3 Rb8 24. Bc2 Qd8 25. fxe5 Nxe5 26. Nd4 Bd7 27. Ba4 Qf6 28. Rb3 h5 29. Qe1 Rxb3 30. Bxb3 Nd3 31. Qc3 Bxg3 32. Qxd3 Bc7 33. Nb5 Bb8 34. g3 h4 35. gxh4 Qxh4 36. Rf2 Qb4 37. Bxd5+ cxd5 38. Qxd5+ Rf7 39. c6 Bc8 40. c7 Bxc7 41. Nxc7 Bb7 42. Qd8+ Kh7 43. Rd2 Qg4+ 44. Kf1 Qh3+ 45. Ke1 Qxe3+ 46. Kd1 Bf3+ 47. Kc1 Qc5+ 48. Rc2 Qg1+ 49. Kd2 Qd1+ 0-1

[Event "45th FIDE Womens Olympiad 2024"]
[Site "Budapest"]
[Date "2024.09.14"]
[Round "4.46"]
[White "Fataliyeva, Ulviyya"]
[Black "Urh, Zala"]
[Result "1/2-1/2"]
[ECO "A16"]
[WhiteElo "2378"]
[BlackElo "2251"]
[Annotator "ChessBase"]
[PlyCount "95"]
[EventDate "2024.09.05"]
[EventType "team-tourn"]
[EventCountry "HUN"]
[SourceTitle "playchess.com"]
[Source "ChessBase"]
[SourceQuality "1"]
[WhiteTeam "Azerbaijan"]
[BlackTeam "Slovenia"]
[WhiteTeamCountry "AZE"]
[BlackTeamCountry "SLO"]
[TimeControl "40/5400+30:1800+30"]

1. Nf3 Nf6 2. c4 g6 3. Nc3 Bg7 4. e4 e5 5. Nxe5 O-O 6. Nf3 Re8 7. d3 d5 8. cxd5 Nxd5 9. Nxd5 Qxd5 10. Be2 Qd6 11. O-O c5 12. Nd2 Nc6 13. f4 Nd4 14. Nc4 Qe7 15. Be3 Be6 16. Rc1 Rad8 17. b3 b6 18. Bxd4 Bxd4+ 19. Kh1 b5 20. Nd2 a5 21. Rc2 f5 22. Qe1 Ra8 23. Nf3 Red8 24. Nxd4 Rxd4 25. Bf3 Ra7 26. Qc3 a4 27. b4 fxe4 28. Bxe4 Rxb4 29. Re1 Qd6 30. Rce2 Bf7 31. f5 gxf5 32. Bxf5 Rh4 33. h3 Qd4 34. Qc1 Rh5 35. Re4 Qf2 36. Rg4+ Bg6 37. Bxg6 hxg6 38. Rf1 Qxa2 39. Qf4 Rg7 40. Qb8+ Kh7 41. Qxb5 a3 42. Qc4 Qxc4 43. Rxc4 Ra7 44. Ra1 a2 45. Rc2 Rd5 46. Rcxa2 Rxa2 47. Rxa2 Rxd3 48. Rc2 1/2-1/2

[Event "45th FIDE Womens Olympiad 2024"]
[Site "Budapest"]
[Date "2024.09.14"]
[Round "4.46"]
[White "Henry, Zahidu"]
[Black "Kouassi Edichy Berenice"]
[Result "0-1"]
[ECO "D02"]
[WhiteElo "1450"]
[BlackElo "1528"]
[PlyCount "78"]
[EventDate "2024.09.05"]
[EventType "team-tourn"]
[EventCountry "HUN"]
[WhiteTeam "Dominica"]
[BlackTeam "Cote d/^Ivoire"]
[WhiteTeamCountry "DMA"]
[TimeControl "40/5400+30:1800+30"]

1. d4 d5 2. Bf4 c6 3. e3 Bf5 4. Nf3 Nf6 5. Be2 e6 6. O-O Be7 7. Nbd2 O-O 8. c3 Nbd7 9. Nh4 Ne4 10. Nxf5 exf5 11. Qc2 Ndf6 12. f3 Nxd2 13. Qxd2 Nh5 14. Bd3 Nxf4 15. exf4 Qd7 16. h3 Rae8 17. Rae1 Bh4 18. Re2 Bg3 19. Qc2 g6 20. Qd2 Qd6 21. Re5 Qf6 22. Qe2 Rxe5 23. fxe5 Qh4 24. f4 Bxf4 25. Qf2 Bg3 26. Qf3 f4 27. c4 Qd8 28. c5 Re8 29. Qg4 Kg7 30. Rxf4 Bxf4 31. Qxf4 f6 32. exf6+ Qxf6 33. Qg4 Re3 34. Bc2 Re1+ 35. Kh2 Rf1 36. Bd3 Qf4+ 37. Qg3 Rh1+ 38. Kxh1 Qxg3 39. Be2 Qe1+ {0-} 0-1

[Event "45th FIDE Womens Olympiad 2024"]
[Site "Budapest"]
[Date "2024.09.14"]
[Round "4.47"]
[White "Janzelj, Lara"]
[Black "Beydullayeva, Govhar"]
[Result "0-1"]
[ECO "E11"]
[WhiteElo "2193"]
[BlackElo "2395"]
[Annotator "ChessBase"]
[PlyCount "74"]
[EventDate "2024.09.05"]
[EventType "team-tourn"]
[EventCountry "HUN"]
[SourceTitle "playchess.com"]
[Source "ChessBase"]
[SourceQuality "1"]
[WhiteTeam "Slovenia"]
[BlackTeam "Azerbaijan"]
[WhiteTeamCountry "SLO"]
[BlackTeamCountry "AZE"]
[TimeControl "40/5400+30:1800+30"]

1. d4 Nf6 2. c4 e6 3. Nf3 d5 4. g3 Bb4+ 5. Bd2 Be7 6. Bg2 O-O 7. O-O Nbd7 8. Qc2 c6 9. Rd1 a5 10. b3 b6 11. Bf4 Ba6 12. Nbd2 Nh5 13. Ne5 Nxf4 14. gxf4 Rc8 15. Kh1 Nf6 16. e3 c5 17. dxc5 Bxc5 18. Ndf3 Ne4 19. Nd4 Qh4 20. Bxe4 dxe4 21. Nd7 Rfd8 22. Nxc5 bxc5 23. Nb5 Rd3 24. Rg1 Rcd8 25. Rg3 g6 26. Rf1 Qh5 27. Kg2 e5 28. fxe5 Qxe5 29. Qc1 Bc8 30. Qa3 h5 31. h4 Bg4 32. Qxa5 Bf3+ 33. Kh2 Rd1 34. Nd4 R8xd4 35. exd4 Rxf1 36. Qd8+ Kg7 37. dxe5 Rh1# 0-1

[Event "45th FIDE Womens Olympiad 2024"]
[Site "Budapest"]
[Date "2024.09.14"]
[Round "4.48"]
[White "Mammadova, Gulnar"]
[Black "Vidic, Teja"]
[Result "1/2-1/2"]
[ECO "C77"]
[WhiteElo "2336"]
[BlackElo "2128"]
[Annotator "ChessBase"]
[PlyCount "120"]
[EventDate "2024.09.05"]
[EventType "team-tourn"]
[EventCountry "HUN"]
[SourceTitle "playchess.com"]
[Source "ChessBase"]
[SourceQuality "1"]
[WhiteTeam "Azerbaijan"]
[BlackTeam "Slovenia"]
[WhiteTeamCountry "AZE"]
[BlackTeamCountry "SLO"]
[TimeControl "40/5400+30:1800+30"]

1. e4 e5 2. Nf3 Nc6 3. Bb5 a6 4. Ba4 Nf6 5. O-O Be7 6. d3 b5 7. Bb3 d6 8. a3 O-O 9. Nc3 Na5 10. Ba2 Be6 11. b4 Bxa2 12. Nxa2 Nc6 13. c4 Nd4 14. Bb2 Nxf3+ 15. Qxf3 c6 16. Rfd1 Qc8 17. Rac1 Qe6 18. Nc3 Nd7 19. Ne2 Rac8 20. Qe3 f5 21. exf5 Qxf5 22. Ng3 Qf7 23. Rc2 c5 24. bxc5 Rxc5 25. Ne4 Rc7 26. Rcd2 Qf4 27. Qe2 Nb6 28. cxb5 axb5 29. Nc3 b4 30. g3 Qf7 31. axb4 Bg5 32. Rc2 Rfc8 33. Qg4 Qb3 34. Qxg5 Qxc2 35. Rd2 Qb3 36. Ne4 Na4 37. Nxd6 Nxb2 38. Nxc8 Rxc8 39. Qxe5 Na4 40. d4 h6 41. d5 Rc1+ 42. Kg2 Qxb4 43. Rd4 Qb5 44. Qe6+ Kh8 45. Qf5 Qf1+ 46. Kf3 Rc3+ 47. Kg4 Qe2+ 48. Kh3 Rf3 49. Qg4 Nc5 50. d6 Nd7 51. Qe4 Qxf2 52. Rd1 Rf8 53. Qe6 Qf5+ 54. Qxf5 Rxf5 55. Kg4 g6 56. Re1 Ne5+ 57. Kh3 Kg7 58. g4 Rg5 59. d7 Nxd7 60. Re7+ Kf6 1/2-1/2

[Event "45th FIDE Womens Olympiad 2024"]
[Site "Budapest"]
[Date "2024.09.14"]
[Round "4.49"]
[White "Francisco Guecamburu, Candela Be"]
[Black "Wagner, Dinara"]
[Result "1/2-1/2"]
[ECO "B55"]
[WhiteElo "2294"]
[BlackElo "2452"]
[Annotator "ChessBase"]
[PlyCount "76"]
[EventDate "2024.09.05"]
[EventType "team-tourn"]
[EventCountry "HUN"]
[SourceTitle "playchess.com"]
[Source "ChessBase"]
[SourceQuality "1"]
[WhiteTeam "Argentina"]
[BlackTeam "Germany"]
[WhiteTeamCountry "ARG"]
[BlackTeamCountry "GER"]
[TimeControl "40/5400+30:1800+30"]

1. e4 c5 2. Nf3 d6 3. d4 cxd4 4. Nxd4 Nf6 5. Bd3 Nc6 6. Be3 e5 7. Nxc6 bxc6 8. c4 Be7 9. Nc3 O-O 10. O-O Be6 11. h3 d5 12. cxd5 cxd5 13. exd5 Nxd5 14. Nxd5 Qxd5 15. b3 Rfd8 16. Bc4 Qc6 17. Qe2 Bxc4 18. Qxc4 Qxc4 19. bxc4 Rdc8 20. Rfd1 Rxc4 21. Rd7 Bf8 22. Rxa7 Rxa7 23. Bxa7 Ra4 24. Be3 f5 25. Rc1 Rxa2 26. Bc5 Ra8 27. Bxf8 Rxf8 28. Rc5 e4 29. g3 g6 30. f3 Re8 31. Kf2 Rb8 32. fxe4 fxe4 33. Re5 Rb2+ 34. Ke3 Rb3+ 35. Kf2 Rb2+ 36. Ke3 Rb3+ 37. Kf2 Rb4 38. Ke3 Rb3+ 1/2-1/2

[Event "45th FIDE Womens Olympiad 2024"]
[Site "Budapest"]
[Date "2024.09.14"]
[Round "4.50"]
[White "Paehtz, Elisabeth"]
[Black "Campos, Maria Jose"]
[Result "1-0"]
[ECO "E04"]
[WhiteElo "2455"]
[BlackElo "2252"]
[Annotator "ChessBase"]
[PlyCount "105"]
[EventDate "2024.09.05"]
[EventType "team-tourn"]
[EventCountry "HUN"]
[SourceTitle "playchess.com"]
[Source "ChessBase"]
[SourceQuality "1"]
[WhiteTeam "Germany"]
[BlackTeam "Argentina"]
[WhiteTeamCountry "GER"]
[BlackTeamCountry "ARG"]
[TimeControl "40/5400+30:1800+30"]

1. d4 Nf6 2. c4 e6 3. Nf3 d5 4. g3 dxc4 5. Bg2 Nc6 6. O-O Rb8 7. e3 Bd7 8. Qe2 b5 9. b3 cxb3 10. axb3 Rb6 11. e4 a6 12. Be3 Nb4 13. Ne5 Be7 14. Nc3 Rb8 15. Rfd1 O-O 16. Na2 Ra8 17. Nxb4 Bxb4 18. Rdc1 a5 19. Qc2 Ne8 20. Nd3 Be7 21. e5 c6 22. Bd2 Qb6 23. Nc5 Bc8 24. Qe4 Bxc5 25. dxc5 Qd8 26. Qxc6 Ra6 27. Bxa5 Rxa5 28. Rxa5 Qxa5 29. Qxc8 Nc7 30. Qd7 f5 31. b4 Qa7 32. Rd1 h6 33. Qd4 Kh8 34. Ra1 Qb8 35. Qd6 Rd8 36. Qb6 Qc8 37. Qc6 Qb8 38. h4 Kh7 39. Qb6 Qc8 40. Qc6 Rd7 41. Bf1 Qd8 42. Ra7 Kh8 43. Kg2 f4 44. Bxb5 Rf7 45. Rxc7 f3+ 46. Kh3 Rxc7 47. Qe8+ Qxe8 48. Bxe8 Kg8 49. c6 Kf8 50. Bd7 Ke7 51. b5 Ra7 52. b6 Rxd7 53. b7 1-0

[Event "45th FIDE Womens Olympiad 2024"]
[Site "Budapest"]
[Date "2024.09.14"]
[Round "4.51"]
[White "Borda Rodas, Anapaola S."]
[Black "Heinemann, Josefine"]
[Result "1/2-1/2"]
[ECO "B55"]
[WhiteElo "2216"]
[BlackElo "2316"]
[Annotator "ChessBase"]
[PlyCount "109"]
[EventDate "2024.09.05"]
[EventType "team-tourn"]
[EventCountry "HUN"]
[SourceTitle "playchess.com"]
[Source "ChessBase"]
[SourceQuality "1"]
[WhiteTeam "Argentina"]
[BlackTeam "Germany"]
[WhiteTeamCountry "ARG"]
[BlackTeamCountry "GER"]
[TimeControl "40/5400+30:1800+30"]

1. e4 c5 2. Nf3 d6 3. d4 cxd4 4. Nxd4 Nf6 5. Bd3 Nc6 6. Be3 e5 7. Nxc6 bxc6 8. c4 Be7 9. Nc3 O-O 10. O-O Be6 11. Qe2 Ng4 12. Bc1 Bg5 13. h3 Bxc1 14. Raxc1 Nf6 15. Rfd1 Qe7 16. b4 Nd7 17. Rd2 a5 18. b5 Rfc8 19. Rdc2 Nc5 20. Qe3 Rab8 21. Bf1 Bd7 22. Rd1 Ne6 23. Rcd2 Nd4 24. bxc6 Bxc6 25. Ne2 Ba4 26. Rc1 Nxe2+ 27. Bxe2 Rc5 28. Qd3 g6 29. Rb1 Rxb1+ 30. Qxb1 Kg7 31. Qb8 Rc6 32. Bf1 Qf8 33. Qa7 Rc5 34. Rb2 Qd8 35. Rb8 Qd7 36. Rb7 Qe6 37. Re7 Qf6 38. Rc7 Rxc7 39. Qxc7 Bc2 40. Qxa5 Bxe4 41. c5 dxc5 42. Qxc5 Bc6 43. Bb5 Bxb5 44. Qxb5 e4 45. a4 Qd4 46. Qb3 Qa1+ 47. Kh2 h5 48. Qb5 Qf6 49. Qc5 Qf4+ 50. g3 Qd2 51. h4 Kh7 52. Kg2 Qa2 53. a5 e3 54. Qxe3 Qxa5 55. Qe4 1/2-1/2

[Event "45th FIDE Womens Olympiad 2024"]
[Site "Budapest"]
[Date "2024.09.14"]
[Round "4.52"]
[White "Klek, Hanna Marie"]
[Black "Sarquis, Maria Belen"]
[Result "0-1"]
[ECO "B15"]
[WhiteElo "2296"]
[BlackElo "2172"]
[Annotator "ChessBase"]
[PlyCount "86"]
[EventDate "2024.09.05"]
[EventType "team-tourn"]
[EventCountry "HUN"]
[SourceTitle "playchess.com"]
[Source "ChessBase"]
[SourceQuality "1"]
[WhiteTeam "Germany"]
[BlackTeam "Argentina"]
[WhiteTeamCountry "GER"]
[BlackTeamCountry "ARG"]
[TimeControl "40/5400+30:1800+30"]

1. e4 c6 2. d4 d5 3. Nc3 dxe4 4. Nxe4 Nf6 5. Nxf6+ exf6 6. c3 Bd6 7. Bd3 O-O 8. Qc2 Re8+ 9. Ne2 h5 10. Be3 Nd7 11. c4 Nf8 12. O-O-O h4 13. h3 Be6 14. a3 Rc8 15. Nc3 a6 16. Rhe1 Ng6 17. Kb1 b5 18. c5 Bb8 19. Bxg6 fxg6 20. Qxg6 Qd7 21. Qh5 a5 22. d5 cxd5 23. Nxd5 Qb7 24. Qf3 Qf7 25. Ka1 b4 26. Nb6 bxa3 27. Nxc8 axb2+ 28. Kxb2 Rxc8 29. Bd4 Bd5 30. Qe3 Qb7+ 31. Ka1 Bf7 32. Qa3 a4 33. f3 Bb3 34. Rd3 Qd5 35. Qb2 Bg3 36. Re4 Rb8 37. Rd2 Qc4 38. Rde2 Qd3 39. Qc1 Bd5 40. Re8+ Rxe8 41. Rxe8+ Kf7 42. Qe3 Qf1+ 43. Kb2 Qb5+ 0-1

[Event "45th FIDE Womens Olympiad 2024"]
[Site "Budapest"]
[Date "2024.09.14"]
[Round "4.53"]
[White "Maksimovic, Masa"]
[Black "Kosteniuk, Alexandra"]
[Result "0-1"]
[ECO "C88"]
[WhiteElo "2093"]
[BlackElo "2483"]
[Annotator "ChessBase"]
[PlyCount "176"]
[EventDate "2024.09.05"]
[EventType "team-tourn"]
[EventCountry "HUN"]
[SourceTitle "playchess.com"]
[Source "ChessBase"]
[SourceQuality "1"]
[WhiteTeam "Bosnia & Herzegovina"]
[BlackTeam "Switzerland"]
[WhiteTeamCountry "BIH"]
[BlackTeamCountry "SUI"]
[TimeControl "40/5400+30:1800+30"]

1. e4 e5 2. Nf3 Nc6 3. Bb5 a6 4. Ba4 Nf6 5. O-O Be7 6. Re1 b5 7. Bb3 O-O 8. a4 Rb8 9. axb5 axb5 10. Nc3 Bc5 11. d3 h6 12. Nd5 Nxd5 13. Bxd5 Qf6 14. c3 Ne7 15. Bb3 d6 16. h3 Ng6 17. Qe2 Bb6 18. Nh2 Be6 19. Bc2 Nh4 20. Be3 Qg6 21. g4 f5 22. f3 fxg4 23. fxg4 Bxe3+ 24. Qxe3 b4 25. Rf1 Rxf1+ 26. Rxf1 bxc3 27. bxc3 Rb2 28. Qc1 Ra2 29. Nf3 Nxf3+ 30. Rxf3 h5 31. g5 h4 32. c4 Qh5 33. Bd1 Bg4 34. c5 Bxf3 35. Bb3+ Kh7 36. Bxa2 Kg6 37. cxd6 cxd6 38. Kf2 Bd1 39. Qe3 Qxg5 40. Bf7+ Kf6 41. Qxg5+ Kxg5 42. Ke3 Kf6 43. Be8 Bb3 44. Bd7 g5 45. Kf3 Bc2 46. Ke3 Bd1 47. Bf5 Bc2 48. Bd7 Bb1 49. Bc8 Ba2 50. Kf3 Bf7 51. Kg4 Bb3 52. Kf3 Ba4 53. Ke3 Bb5 54. Bg4 Ke7 55. Bc8 Bd7 56. Bxd7 Kxd7 57. Kf3 Kc6 58. Kg4 Kc5 59. Kxg5 Kd4 60. Kxh4 Kxd3 61. Kg5 Kxe4 62. h4 d5 63. h5 d4 64. h6 d3 65. h7 d2 66. h8=Q d1=Q 67. Qa8+ Ke3 68. Kf5 Qh5+ 69. Ke6 e4 70. Qa3+ Kf2 71. Qb2+ Kg3 72. Qc3+ Kg4 73. Qe1 Kf4 74. Qf2+ Qf3 75. Qh2+ Qg3 76. Qh6+ Kf3 77. Qh1+ Qg2 78. Qd1+ Kf4 79. Qd6+ Kf3 80. Qd1+ Qe2 81. Qh1+ Ke3 82. Qg1+ Kf4 83. Qh1 e3 84. Qh6+ Kg3 85. Ke5 Qf3 86. Qg6+ Kf2 87. Qc2+ e2 88. Kd4 Kf1 0-1